fUSD/lending_fUSD_20240520
["ID","MTS","AMOUNT","RATE_DAILY","PERIOD"]
[327541148,1716201039464,-2000.0,0.00013261,2]
[327541149,1716201039473,-200.0,0.00013261,2]
[327541150,1716201039483,-200.0,0.00013261,2]
[327541151,1716201039493,-2000.0,0.00013394,2]
[327541152,1716201039503,-200.0,0.00013394,2]
[327541153,1716201039513,-2000.0,0.00013394,2]
[327541154,1716201039523,-200.0,0.00013394,2]
[327541155,1716201039533,-1842.84733006,0.00013394,2]
[327541156,1716201039542,-200.0,0.00013394,2]
[327541157,1716201039552,-200.0,0.00013394,2]
[327541158,1716201039562,-1000.0,0.00013425,2]
[327541159,1716201039572,-168.42,0.00013458,2]
[327541160,1716201039582,-200.0,0.00013528,2]
[327541161,1716201039591,-2000.0,0.00013528,2]
[327541162,1716201039602,-200.0,0.00013528,2]
[327541163,1716201039612,-200.0,0.00013528,2]
[327541164,1716201039621,-200.0,0.00013528,2]
[327541165,1716201039631,-500.0,0.00013699,2]
[327541166,1716201039641,-2751.0,0.00013699,2]
[327541167,1716201039651,-200.0,0.00013699,2]
[327541168,1716201039661,-258.35,0.00013973,2]
[327541169,1716201039670,-185.39,0.00013973,2]
[327541170,1716201039682,-210.91,0.00013973,2]
[327541171,1716201039692,-192.97869952,0.00014,2]
[327541172,1716201039703,-474.65,0.00014267,2]
[327541173,1716201039713,-500.0,0.00014284,2]
[327541174,1716201039723,-500.0,0.00014284,2]
[327541175,1716201039732,-1625.92,0.00014284,2]
[327541176,1716201039742,-861.76,0.00014405,2]
[327541177,1716201039752,-230.4,0.0001443,2]
[327541178,1716201039762,-1027.641514,0.00014521,2]
[327541179,1716201039772,-166.88,0.00014543,2]
[327541180,1716201039783,-187.57809707,0.000149,2]
[327541181,1716201039793,-579.0,0.000149,5]
[327541182,1716201039803,-257.65395905,0.00015,2]
[327541183,1716201039813,-8091.83439501,0.00015,2]
[327541184,1716201039823,-1187.86344164,0.00015,2]
[327541185,1716201039832,-200.0,0.00015,2]
[327541186,1716201039842,-155.57109697,0.00015,2]
[327541187,1716201039852,-155.57702021,0.00015,2]
[327541188,1716201039862,-5900.0,0.00015,2]
[327541189,1716201039871,-486.0,0.00015,2]
[327541190,1716201039882,-10161.0,0.00015,2]
[327541191,1716201039891,-982.0,0.00015,2]
[327541192,1716201039901,-300.0,0.00015068,2]
[327541193,1716201039911,-1027.641514,0.00015342,2]
[327541194,1716201039922,-1664.3597812,0.00015355,2]
[327541195,1716201039932,-168.42,0.00015381,2]
[327541196,1716201039942,-160.2,0.00015429,3]
[327541197,1716201039951,-160.2,0.00015429,2]
[327541198,1716201039961,-250.0,0.00015561,2]
[327541199,1716201039971,-162.667,0.00015723,2]
[327541200,1716201039980,-179.0,0.00015723,2]
[327541201,1716201039990,-228.014,0.00015723,2]
[327541203,1716201040001,-150.157,0.00015723,2]
[327541205,1716201040011,-552.857,0.00015723,2]
[327541207,1716201040021,-1659.459,0.00015723,2]
[327541208,1716201040031,-3180.295,0.00015723,2]
[327541209,1716201040041,-1138.278,0.00015723,2]
[327541210,1716201040051,-217.0,0.00015723,2]
[327541211,1716201040060,-2159.0,0.00015723,2]
[327541212,1716201040070,-289.0,0.00015723,2]
[327541213,1716201040079,-3526.798,0.00015723,2]
[327541214,1716201040089,-4303.759,0.00015723,2]
[327541215,1716201040099,-1642.0,0.00015723,2]
[327541216,1716201040109,-1225.0,0.00015723,2]
[327541217,1716201040119,-557.328,0.00015723,2]
[327541218,1716201040129,-167.0,0.00015831,2]
[327541219,1716201040138,-230.4,0.00015873,2]
[327541220,1716201040148,-861.76,0.00016006,2]
[327541221,1716201040162,-9999.99,0.00016116,2]
[327541222,1716201040171,-1027.641514,0.00016164,2]
[327541223,1716201040183,-167.0,0.00016354,2]
[327541224,1716201040194,-205.1405183,0.00016354,2]
[327541225,1716201040204,-300.0,0.00016438,2]
[327541226,1716201040213,-474.65,0.0001653,2]
[327541227,1716201040223,-160.2,0.00016663,2]
[327541228,1716201040233,-180.0,0.00016712,2]
[327541229,1716201040244,-167.0,0.00016876,2]
[327541230,1716201040254,-162.67573837,0.000169,2]
[327541231,1716201040264,-1027.641514,0.00016986,2]
[327541232,1716201040273,-1625.92,0.00017024,2]
[327541233,1716201040282,-2100.0,0.00017112,2]
[327541234,1716201040292,-300.0,0.00017112,2]
[327541235,1716201040302,-168.42,0.00017303,2]
[327541236,1716201040311,-230.4,0.00017316,2]
[327541237,1716201040320,-167.0,0.00017399,2]
[327541238,1716201040330,-166.88,0.00017452,2]
[327541239,1716201040340,-1005.29745852,0.00017523,2]
[327541240,1716201040349,-861.76,0.00017606,2]
[327541241,1716201040359,-1027.641514,0.00017808,2]
[327541242,1716201040369,-1664.3597812,0.00017809,2]
[327541243,1716201040379,-160.2,0.00017896,2]
[327541244,1716201040389,-167.0,0.00017921,2]
[327541245,1716201040398,-7275.13919532,0.00018,2]
[327541246,1716201040409,-158.43327398,0.00018,2]
[327541247,1716201040418,-1555.3728396,0.00018,2]
[327541248,1716201040429,-1108.9569811,0.00018,2]
[327541249,1716201040439,-1628.84966,0.00018,2]
[327541250,1716201040449,-1658.92567629,0.000181,2]
[327541251,1716201040459,-167.0,0.00018444,2]
[327541252,1716201040470,-1027.641514,0.0001863,2]
[327541253,1716201040480,-1000.0,0.00018663,2]
[327541254,1716201040490,-291.42987355,0.00018663,2]
[327541255,1716201040500,-150.0,0.00018723,2]
[327541256,1716201040509,-289.0,0.00018723,2]
[327541257,1716201040519,-1642.0,0.00018723,2]
[327541258,1716201040528,-1225.0,0.00018723,2]
[327541259,1716201040538,-544.0,0.00018723,2]
[327541260,1716201040547,-474.65,0.00018794,2]
[327541261,1716201040557,-155.0,0.00019,2]
[327541262,1716201040567,-1034.23003402,0.00019,2]
[327541263,1716201040577,-23506.20196006,0.00019,5]
[327541264,1716201040586,-829.54881913,0.00019,2]
[327541265,1716201040596,-160.2,0.0001913,2]
[327541266,1716201040606,-500.0,0.00019136,2]
[327541267,1716201040615,-500.0,0.00019136,2]
[327541268,1716201040631,-178.7100859,0.00019178,2]
[327541269,1716201040646,-500.0,0.00019178,2]
[327541270,1716201040656,-208.1547852,0.00019178,2]
[327541271,1716201040666,-500.0,0.00019178,2]
[327541272,1716201040676,-500.0,0.00019178,2]
[327541273,1716201040686,-500.0,0.00019178,2]
[327541274,1716201040696,-500.0,0.00019178,2]
[327541275,1716201040707,-500.0,0.00019178,2]
[327541276,1716201040717,-500.0,0.00019178,2]
[327541277,1716201040727,-645.47009746,0.00019178,2]
[327541278,1716201040738,-4984.88,0.00019178,2]
[327541279,1716201040748,-7751.48768064,0.000192,2]
[327541280,1716201040759,-8937.6776488,0.000192,2]
[327541281,1716201040769,-1573.96,0.000192,2]
[327541282,1716201040779,-1889.76,0.000192,2]
[327541283,1716201040789,-861.76,0.00019207,2]
[327541284,1716201040799,-155.0,0.00019384,2]
[327541285,1716201040809,-6995.0,0.000194,3]
[327541286,1716201040819,-1027.641514,0.00019452,2]
[327541287,1716201040828,-906.44195135,0.000195,2]
[327541288,1716201040839,-56812.2319566,0.00019567,2]
[327541289,1716201040848,-3134.1598448,0.00019567,2]
[327541290,1716201040859,-8182.1901756,0.00019567,2]
[327541291,1716201040870,-7670.4983349,0.00019567,2]
[327541292,1716201040880,-86308.62677447,0.0001958,2]
[327541293,1716201040891,-872.97063068,0.0001958,2]
[327541294,1716201040902,-1039.06903091,0.0001958,2]
[327541295,1716201040912,-1043.50527684,0.0001958,2]
[327541296,1716201040924,-500.0,0.0001958,2]
[327541297,1716201040933,-19615.65373925,0.000196,2]
[327541298,1716201040943,-205.1405183,0.00019718,2]
[327541299,1716201040954,-150.0,0.00019906,2]
[327541300,1716201040963,-150.0,0.00019951,2]
[327541301,1716201040973,-3682.768401,0.00019958,2]
[327541302,1716201040983,-9614.4143637,0.00019958,2]
[327541303,1716201040992,-9013.1551315,0.00019958,2]
[327541304,1716201041002,-66756.7396058,0.00019972,2]
[327541305,1716201041011,-256.54122443,0.0002,2]
[327541306,1716201041021,-11973.14367307,0.0002,2]
[327541307,1716201041031,-1049.69493307,0.0002,2]
[327541308,1716201041040,-1654.66207998,0.0002,2]
[327541309,1716201041050,-1262.82225324,0.0002,2]
[327541310,1716201041061,-155.0,0.0002,2]
[327541311,1716201041070,-9951.41287389,0.0002,2]
[327541312,1716201041080,-1204.93554904,0.0002,2]
[327541313,1716201041090,-155.0,0.0002,2]
[327541314,1716201041100,-1773.05966905,0.0002,2]
[327541315,1716201041110,-2228.86035027,0.0002,2]
[327541316,1716201041119,-155.08884548,0.0002,2]
[327541317,1716201041129,-155.0,0.0002,2]
[327541318,1716201041139,-343.0,0.0002,2]
[327541319,1716201041148,-189.0,0.0002,2]
[327541320,1716201041160,-9548.81819026,0.0002,2]
[327541321,1716201041169,-150.0,0.0002,2]
[327541322,1716201041179,-263.1548564,0.0002,2]
[327541323,1716201041189,-150.0,0.00020002,2]
[327541324,1716201041199,-150.0,0.00020034,2]
[327541325,1716201041209,-150.0,0.00020055,2]
[327541326,1716201041219,-7600.0,0.0002009,2]
[327541327,1716201041229,-150.0,0.0002023,4]
[327541328,1716201041241,-500.0,0.00020232,2]
[327541329,1716201041251,-500.0,0.00020232,2]
[327541330,1716201041267,-1664.3597812,0.00020264,2]
[327541331,1716201041276,-6000.0,0.000203,3]
[327541332,1716201041286,-150.0,0.00020347,2]
[327541333,1716201041296,-150.0,0.00020348,2]
[327541334,1716201041306,-160.2,0.00020364,2]
[327541335,1716201041316,-150.0,0.000204,2]
[327541336,1716201041326,-150.0,0.00020442,2]
[327541337,1716201041337,-258.35,0.00020447,2]
[327541338,1716201041346,-185.39,0.00020447,2]
[327541339,1716201041356,-210.91,0.00020447,2]
[327541340,1716201041366,-150.0,0.000205,2]
[327541341,1716201041376,-700.0,0.00020506,2]
[327541342,1716201041385,-700.0,0.00020506,2]
[327541343,1716201041395,-150.0,0.00020529,2]
[327541344,1716201041406,-170.85,0.00020548,2]
[327541345,1716201041416,-150.0,0.00020615,2]
[327541346,1716201041426,-150.0,0.00020619,2]
[327541347,1716201041694,-150.0,0.00020678,2]
[327541348,1716201041704,-150.0,0.00020731,2]
[327541349,1716201041713,-723.54,0.00020782,2]
[327541350,1716201041722,-702.5,0.00020782,2]
[327541351,1716201041731,-413.27,0.00020782,2]
[327541352,1716201041740,-150.0,0.00020865,2]
[327541353,1716201041749,-150.0,0.00020888,2]
[327541354,1716201041758,-1000.0,0.00020901,2]
[327541355,1716201041767,-150.0,0.00020957,2]
[327541356,1716201041776,-1377.61483031,0.00021,2]
[327541357,1716201041785,-150.0,0.00021,2]
[327541358,1716201041795,-150.0,0.00021002,2]
[327541359,1716201041804,-700.0,0.00021054,2]
[327541360,1716201041813,-700.0,0.00021054,2]
[327541361,1716201041822,-474.65,0.00021058,2]
[327541362,1716201041832,-150.0,0.00021084,2]
[327541363,1716201041841,-190.0,0.0002115,6]
[327541364,1716201041850,-2124.41062271,0.00021187,2]
[327541365,1716201041860,-150.0,0.00021189,2]
[327541366,1716201041870,-235.71183241,0.00021198,2]
[327541367,1716201041879,-154.81580749,0.00021213,2]
[327541368,1716201041889,-150.0,0.00021234,2]
[327541369,1716201041898,-150.0,0.00021249,2]
[327541370,1716201041907,-216.24329471,0.00021298,2]
[327541371,1716201041916,-1573.96,0.000213,2]
[327541372,1716201041926,-1889.76,0.000213,2]
[327541373,1716201041935,-212.76119854,0.00021322,2]
[327541374,1716201041943,-500.0,0.00021328,2]
[327541375,1716201041952,-500.0,0.00021328,2]
[327541376,1716201041961,-150.0,0.00021355,2]
[327541377,1716201041970,-479.55,0.0002137,2]
[327541378,1716201041979,-756.4,0.0002137,2]
[327541379,1716201041989,-153.30748744,0.00021375,2]
[327541380,1716201041998,-152.18902764,0.00021385,2]
[327541381,1716201042007,-150.0,0.00021391,2]
[327541382,1716201042016,-150.0,0.00021398,2]
[327541383,1716201042025,-150.0,0.00021403,2]
[327541384,1716201042035,-2124.41062271,0.00021436,2]
[327541385,1716201042044,-150.0,0.00021451,2]
[327541386,1716201042052,-186.84082463,0.00021466,2]
[327541387,1716201042061,-150.0,0.000215,3]
[327541388,1716201042070,-150.0,0.00021504,2]
[327541389,1716201042079,-150.0,0.00021582,2]
[327541390,1716201042088,-154.61721695,0.00021591,2]
[327541391,1716201042097,-166.66666666,0.00021595,2]
[327541392,1716201042107,-160.2,0.00021598,3]
[327541393,1716201042116,-700.0,0.00021602,2]
[327541394,1716201042126,-700.0,0.00021602,2]
[327541395,1716201042135,-285.21,0.00021604,2]
[327541396,1716201042144,-163.46,0.00021604,2]
[327541397,1716201042157,-163.46,0.00021604,2]
[327541398,1716201042166,-163.46,0.00021604,2]
[327541399,1716201042177,-326.88,0.00021604,2]
[327541400,1716201042185,-154.81580749,0.00021681,2]
[327541401,1716201042195,-150.0,0.00021685,2]
[327541402,1716201042204,-150.0,0.00021723,2]
[327541403,1716201042215,-235.783,0.00021723,2]
[327541404,1716201042224,-1321.376,0.00021723,2]
[327541405,1716201042236,-523.835,0.00021723,2]
[327541406,1716201042244,-544.0,0.00021723,2]
[327541407,1716201042254,-150.0,0.00021739,2]
[327541408,1716201042263,-154.61721695,0.00021783,2]
[327541409,1716201042272,-2500.0,0.000218,2]
[327541410,1716201042281,-150.0,0.00021814,2]
[327541411,1716201042290,-150.08404327,0.00021831,2]
[327541412,1716201042299,-150.0,0.00021835,2]
[327541413,1716201042308,-270.02782498,0.00021863,2]
[327541414,1716201042317,-813.71626425,0.00021881,2]
[327541415,1716201042327,-150.0,0.00021883,2]
[327541416,1716201042336,-150.0,0.00021884,2]
[327541417,1716201042345,-12993.28073755,0.000219,2]
[327541418,1716201042354,-1000.0,0.000219,2]
[327541419,1716201042363,-1231.15,0.00021918,2]
[327541420,1716201042372,-1382.08,0.00021918,2]
[327541421,1716201042382,-163.86,0.00021918,2]
[327541422,1716201042391,-2000.0,0.00021918,2]
[327541423,1716201042400,-176.58921976,0.00021918,2]
[327541424,1716201042409,-506.12381843,0.0002192,2]
[327541425,1716201042420,-150.0,0.0002192,2]
[327541426,1716201042429,-150.0,0.0002192,2]
[327541427,1716201042438,-186.84082463,0.00021972,2]
[327541428,1716201042447,-234.609182,0.00021984,2]
[327541429,1716201042457,-308.460626,0.00021984,2]
[327541430,1716201042466,-521.04235,0.00021984,2]
[327541431,1716201042475,-29075.970216,0.00021984,2]
[327541432,1716201042484,-1916.923669,0.00021984,2]
[327541433,1716201042494,-200.983252,0.00021984,2]
[327541434,1716201042503,-251.229066,0.00021984,2]
[327541435,1716201042514,-281.353819,0.00021984,2]
[327541436,1716201042524,-11184.02174067,0.00022,2]
[327541437,1716201042533,-10599.43219035,0.00022,2]
[327541438,1716201042542,-150.0,0.00022,3]
[327541439,1716201042551,-538.02243809,0.00022007,2]
[327541440,1716201042560,-186.84082463,0.00022061,2]
[327541441,1716201042570,-150.0,0.00022145,2]
[327541443,1716201042579,-150.0,0.00022148,2]
[327541445,1716201042589,-700.0,0.0002215,2]
[327541447,1716201042599,-700.0,0.0002215,2]
[327541449,1716201042608,-967.78835337,0.0002217,2]
[327541451,1716201042617,-150.0,0.00022198,2]
[327541453,1716201042626,-152.9731038,0.00022204,2]
[327541455,1716201042635,-967.78835337,0.00022205,2]
[327541457,1716201042645,-150.0,0.00022248,2]
[327541459,1716201042654,-234.609182,0.00022259,2]
[327541461,1716201042663,-308.460626,0.00022259,2]
[327541463,1716201042672,-521.04235,0.00022259,2]
[327541464,1716201042683,-29075.970216,0.00022259,2]
[327541465,1716201042692,-1916.923669,0.00022259,2]
[327541466,1716201042711,-200.983252,0.00022259,2]
[327541467,1716201042722,-281.353819,0.00022259,2]
[327541468,1716201042732,-150.0,0.00022292,2]
[327541469,1716201042742,-1500.0,0.000223,2]
[327541470,1716201042752,-2124.41062271,0.00022319,2]
[327541471,1716201042761,-270.02782498,0.00022326,2]
[327541472,1716201042771,-210.64061224,0.0002234,2]
[327541473,1716201042781,-967.78835337,0.000224,2]
[327541475,1716201042791,-500.0,0.00022424,2]
[327541477,1716201042801,-500.0,0.00022424,2]
[327541480,1716201042811,-235.71183241,0.00022429,2]
[327541482,1716201042822,-150.0,0.00022461,2]
[327541484,1716201042832,-150.0,0.00022482,2]
[327541486,1716201042842,-150.0,0.000225,3]
[327541488,1716201042852,-153.02819881,0.0002253,2]
[327541490,1716201042862,-234.609182,0.00022534,2]
[327541492,1716201042871,-308.460626,0.00022534,2]
[327541494,1716201042881,-521.04235,0.00022534,2]
[327541497,1716201042891,-29075.970216,0.00022534,2]
[327541499,1716201042901,-1916.923669,0.00022534,2]
[327541501,1716201042911,-200.983252,0.00022534,2]
[327541503,1716201042920,-281.353819,0.00022534,2]
[327541505,1716201042931,-813.71626425,0.00022551,2]
[327541507,1716201042941,-150.0,0.00022552,2]
[327541509,1716201042950,-157.38762473,0.00022594,2]
[327541512,1716201042960,-150.0,0.00022606,2]
[327541514,1716201042970,-150.0,0.0002261,2]
[327541516,1716201042980,-150.0,0.00022648,2]
[327541518,1716201042989,-150.0,0.00022679,2]
[327541520,1716201042999,-700.0,0.00022698,2]
[327541522,1716201043009,-700.0,0.00022698,2]
[327541524,1716201043021,-154.81580749,0.00022701,2]
[327541526,1716201043030,-1664.3597812,0.00022718,2]
[327541528,1716201043040,-150.0,0.00022754,2]
[327541530,1716201043050,-153.93988,0.00022799,2]
[327541532,1716201043060,-1889.76,0.000228,2]
[327541535,1716201043071,-1573.96,0.000228,2]
[327541537,1716201043080,-1500.0,0.000228,2]
[327541539,1716201043090,-234.609182,0.00022809,2]
[327541541,1716201043099,-308.460626,0.00022809,2]
[327541543,1716201043109,-521.04235,0.00022809,2]
[327541545,1716201043119,-29075.970216,0.00022809,2]
[327541547,1716201043128,-1916.923669,0.00022809,2]
[327541549,1716201043138,-200.983252,0.00022809,2]
[327541551,1716201043147,-281.353819,0.00022809,2]
[327541553,1716201043160,-160.2,0.00022831,3]
[327541555,1716201043171,-152.9731038,0.00022841,2]
[327541557,1716201043182,-152.18902764,0.00022843,2]
[327541559,1716201043191,-152.18902764,0.00022885,2]
[327541561,1716201043200,-150.0,0.00022946,2]
[327541563,1716201043210,-157.38762473,0.00022986,2]
[327541566,1716201043219,-152.18902764,0.00022994,2]
[327541568,1716201043229,-155.0,0.00023,2]
[327541570,1716201043242,-5000.0,0.00023,2]
[327541572,1716201043251,-1628.84966,0.00023,2]
[327541574,1716201043261,-150.0,0.00023,3]
[327541576,1716201043271,-151.0,0.00023,3]
[327541578,1716201043280,-155.65669387,0.00023066,2]
[327541580,1716201043290,-150.0,0.00023072,2]
[327541582,1716201043299,-150.0,0.00023073,2]
[327541584,1716201043310,-234.609182,0.00023083,2]
[327541587,1716201043320,-308.460626,0.00023083,2]
[327541589,1716201043330,-521.04235,0.00023083,2]
[327541591,1716201043340,-29075.970216,0.00023083,2]
[327541593,1716201043350,-1916.923669,0.00023083,2]
[327541595,1716201043359,-200.983252,0.00023083,2]
[327541597,1716201043369,-281.353819,0.00023083,2]
[327541599,1716201043378,-150.0,0.0002309,2]
[327541601,1716201043388,-155.0,0.00023113,2]
[327541603,1716201043397,-157.052015,0.00023148,2]
[327541605,1716201043407,-967.78835337,0.00023157,2]
[327541607,1716201043417,-150.0,0.00023163,2]
[327541609,1716201043428,-150.0,0.0002317,2]
[327541611,1716201043439,-235.71183241,0.00023225,2]
[327541613,1716201043448,-154.81580749,0.00023235,2]
[327541615,1716201043457,-700.0,0.00023246,2]
[327541617,1716201043467,-150.0,0.00023268,2]
[327541619,1716201043476,-967.78835337,0.00023269,2]
[327541621,1716201043486,-1500.0,0.000233,2]
[327541623,1716201043496,-186.84082463,0.00023304,2]
[327541625,1716201043506,-150.0,0.00023322,2]
[327541627,1716201043516,-474.65,0.00023322,2]
[327541630,1716201043525,-216.24329471,0.00023354,2]
[327541632,1716201043535,-150.0,0.00023357,2]
[327541634,1716201043544,-150.0,0.00023362,2]
[327541636,1716201043554,-150.0,0.00023364,2]
[327541638,1716201043564,-235.71183241,0.00023386,2]
[327541641,1716201043573,-1129.46054546,0.00023397,2]
[327541644,1716201043583,-150.0,0.00023399,2]
[327541647,1716201043592,-3846.94130324,0.000234,2]
[327541648,1716201043601,-150.0,0.00023439,2]
[327541649,1716201043612,-150.0,0.00023445,2]
[327541650,1716201043621,-150.0,0.00023446,2]
[327541651,1716201043631,-157.052015,0.00023448,2]
[327541652,1716201043642,-150.0,0.00023454,2]
[327541653,1716201043652,-152.18902764,0.00023464,2]
[327541654,1716201043662,-159.00792521,0.00023467,2]
[327541655,1716201043672,-4231.3769572,0.00023472,2]
[327541656,1716201043683,-11046.6385518,0.00023472,2]
[327541657,1716201043692,-153.02819881,0.00023481,2]
[327541658,1716201043703,-68788.25261836,0.00023488,2]
[327541659,1716201043723,-7912.99463664,0.00023488,2]
[327541660,1716201043733,-150.0,0.000235,3]
[327541661,1716201043742,-150.0,0.00023517,2]
[327541662,1716201043752,-500.0,0.0002352,2]
[327541664,1716201043761,-500.0,0.0002352,2]
[327541666,1716201043776,-163.97443191,0.00023532,2]
[327541668,1716201043787,-159.00792521,0.00023533,2]
[327541669,1716201043796,-150.0,0.00023554,2]
[327541671,1716201043807,-150.0,0.00023556,2]
[327541673,1716201043817,-10355.8119281,0.00023574,2]
[327541675,1716201043827,-1500.0,0.00023595,2]
[327541677,1716201043837,-150.0,0.00023597,2]
[327541679,1716201043847,-150.0,0.00023599,2]
[327541681,1716201043857,-154.81580749,0.000236,2]
[327541682,1716201043867,-150.0,0.0002363,2]
[327541683,1716201043877,-380.86533228,0.00023648,2]
[327541684,1716201043888,-150.0,0.00023671,2]
[327541685,1716201043898,-1500.0,0.00023697,2]
[327541686,1716201043908,-967.78835337,0.00023714,2]
[327541687,1716201043918,-158.84348736,0.00023718,2]
[327541688,1716201043928,-1500.0,0.00023723,2]
[327541689,1716201043938,-150.0,0.00023747,2]
[327541690,1716201043948,-157.052015,0.00023748,2]
[327541691,1716201043958,-1500.0,0.00023762,2]
[327541692,1716201043969,-150.0,0.00023767,2]
[327541693,1716201043979,-300.0,0.00023769,2]
[327541694,1716201043989,-150.0,0.00023773,2]
[327541695,1716201043999,-151.08712859,0.00023776,2]
[327541696,1716201044009,-300.0,0.00023788,2]
[327541697,1716201044019,-152.9731038,0.0002379,2]
[327541698,1716201044029,-700.0,0.00023794,2]
[327541699,1716201044039,-1500.0,0.000238,2]
[327541700,1716201044049,-150.0,0.0002382,2]
[327541701,1716201044059,-538.02243809,0.0002382,2]
[327541702,1716201044070,-538.02243809,0.00023822,2]
[327541703,1716201044080,-150.0,0.00023829,2]
[327541704,1716201044090,-1143.00094067,0.00023842,2]
[327541705,1716201044100,-1000.8573345,0.00023842,2]
[327541706,1716201044110,-186.84082463,0.00023868,2]
[327541707,1716201044120,-150.0,0.00023876,2]
[327541708,1716201044130,-300.0,0.00023889,2]
[327541709,1716201044140,-1500.0,0.00023904,2]
[327541710,1716201044150,-150.0,0.00023905,2]
[327541711,1716201044165,-300.0,0.00023912,2]
[327541712,1716201044175,-300.0,0.00023916,2]
[327541713,1716201044186,-216.24329471,0.0002392,2]
[327541714,1716201044196,-150.0,0.00023921,2]
[327541715,1716201044207,-1500.0,0.00023929,2]
[327541716,1716201044216,-150.0,0.00023938,2]
[327541717,1716201044226,-150.0,0.00023962,2]
[327541718,1716201044239,-150.0,0.00023972,2]
[327541719,1716201044250,-150.0,0.00023984,2]
[327541720,1716201044260,-150.0,0.00023995,2]
[327541721,1716201044270,-830.94633425,0.00024,2]
[327541722,1716201044280,-151.2467,0.00024,2]
[327541723,1716201044290,-1001.77213746,0.00024,4]
[327541724,1716201044300,-7000.77791852,0.00024,7]
[327541725,1716201044309,-150.0,0.00024,4]
[327541726,1716201044319,-150.0,0.00024012,2]
[327541727,1716201044330,-150.0,0.00024014,2]
[327541728,1716201044340,-1500.0,0.00024018,2]
[327541729,1716201044349,-150.0,0.00024033,2]
[327541730,1716201044359,-157.38762473,0.00024033,2]
[327541731,1716201044369,-150.0,0.00024051,2]
[327541732,1716201044379,-150.0,0.00024054,2]
[327541733,1716201044388,-219.13466772,0.00024063,2]
[327541734,1716201044398,-2124.41062271,0.00024063,2]
[327541735,1716201044632,-160.2,0.00024065,5]
[327541736,1716201044642,-1040.29783903,0.00024066,2]
[327541737,1716201044655,-459.70216097,0.00024066,2]
[327541738,1716201044665,-150.0,0.00024087,2]
[327541739,1716201044676,-150.0,0.00024088,2]
[327541740,1716201044687,-150.0,0.00024097,2]
[327541741,1716201044696,-150.0,0.00024101,2]
[327541742,1716201044706,-150.0,0.0002412,2]
[327541743,1716201044716,-166.66666666,0.0002412,2]
[327541744,1716201044726,-1500.0,0.00024138,2]
[327541745,1716201044736,-157.052015,0.00024148,2]
[327541746,1716201044745,-109.46550868,0.00024171,2]
[327541751,1716201046348,-205.1405183,0.00023082,2]
[327541752,1716201046358,-150.0,0.00023114,2]
[327541753,1716201046367,-150.0,0.00023152,2]
[327541754,1716201046377,-150.0,0.00023158,2]
[327541755,1716201046386,-150.0,0.00023186,2]
[327541756,1716201046395,-150.0,0.00023205,2]
[327541757,1716201046405,-150.0,0.0002321,2]
[327541758,1716201046414,-150.0,0.00023301,2]
[327541759,1716201046423,-150.0,0.00023488,2]
[327541760,1716201046434,-150.0,0.00023536,2]
[327541761,1716201046442,-150.0,0.00023574,2]
[327541762,1716201046451,-150.0,0.00023613,2]
[327541763,1716201046461,-150.0,0.00023647,2]
[327541764,1716201046659,-150.0,0.00023691,2]
[327541765,1716201046669,-150.0,0.0002375,2]
[327541766,1716201046679,-150.0,0.00023751,2]